[Event "Early-Titled-Tuesday-Blitz-September-26-2023"]
[Site "Chess.com"]
[Date "2023.09.26"]
[Round "5"]
[White "RamonManon0g"]
[Black "gueraumasague"]
[Result "0-1"]
[WhiteElo "2292"]
[BlackElo "2471"]
[TimeControl "180+1"]
[EndTime "8:57:24 PDT"]
[Termination "gueraumasague won by resignation"]

1. e4 {[%clk 0:03:00.9]} 1... g6 {[%clk 0:03:00.9]} 2. d4 {[%clk 0:03:00.5]}
2... Bg7 {[%clk 0:03:01.6]} 3. Nc3 {[%clk 0:03:00.8]} 3... c6 {[%clk 0:03:02.1]}
4. Be3 {[%clk 0:03:01.3]} 4... d5 {[%clk 0:03:02.5]} 5. e5 {[%clk 0:03:01.6]}
5... h5 {[%clk 0:03:01.5]} 6. Qd2 {[%clk 0:03:01.7]} 6... Nh6 {[%clk 0:03:01.2]}
7. Bd3 {[%clk 0:03:00.8]} 7... Nf5 {[%clk 0:03:00.2]} 8. Bg5 {[%clk 0:03:00.8]}
8... Qb6 {[%clk 0:02:54.8]} 9. Bxf5 {[%clk 0:02:38.1]} 9... Bxf5 {[%clk
0:02:55.7]} 10. Nf3 {[%clk 0:02:36.9]} 10... Nd7 {[%clk 0:02:48.3]} 11. O-O
{[%clk 0:02:34]} 11... Nf8 {[%clk 0:02:30.6]} 12. Na4 {[%clk 0:02:29.3]} 12...
Qc7 {[%clk 0:02:27.9]} 13. Nc5 {[%clk 0:02:27.5]} 13... b6 {[%clk 0:02:22.2]}
14. Nd3 {[%clk 0:02:26.9]} 14... Ne6 {[%clk 0:02:03.1]} 15. Be3 {[%clk
0:02:26.3]} 15... O-O {[%clk 0:01:29.3]} 16. Bh6 {[%clk 0:02:24.4]} 16... Bxd3
{[%clk 0:01:20.1]} 17. Bxg7 {[%clk 0:02:22.8]} 17... Bxf1 {[%clk 0:01:17.9]} 18.
Bxf8 {[%clk 0:02:22.4]} 18... Bxg2 {[%clk 0:01:15.7]} 19. Nh4 {[%clk 0:02:16.4]}
19... Rxf8 {[%clk 0:01:12.4]} 20. Kxg2 {[%clk 0:02:16.2]} 20... c5 {[%clk
0:01:10.7]} 21. c3 {[%clk 0:02:14.1]} 21... Kg7 {[%clk 0:01:05]} 22. Rg1 {[%clk
0:02:12.2]} 22... Kh7 {[%clk 0:00:33.5]} 23. Kh1 {[%clk 0:02:07.2]} 23... cxd4
{[%clk 0:00:28.6]} 24. cxd4 {[%clk 0:02:08.1]} 24... Rc8 {[%clk 0:00:23.6]} 25.
Qd3 {[%clk 0:02:01.5]} 25... Qc2 {[%clk 0:00:15.6]} 26. Qf3 {[%clk 0:01:55.6]}
26... Qe4 {[%clk 0:00:14.3]} 27. Qxe4 {[%clk 0:01:38.6]} 27... dxe4 {[%clk
0:00:15.2]} 28. Re1 {[%clk 0:01:34.9]} 28... Nxd4 {[%clk 0:00:14.1]} 29. Rxe4
{[%clk 0:01:35]} 29... Ne6 {[%clk 0:00:12.8]} 30. Re2 {[%clk 0:01:33.6]} 30...
Rc4 {[%clk 0:00:12.2]} 31. Nf3 {[%clk 0:01:30.3]} 31... g5 {[%clk 0:00:12.5]}
32. Kg2 {[%clk 0:01:29]} 32... Nf4+ {[%clk 0:00:11.9]} 33. Kf1 {[%clk
0:01:28.2]} 33... Nxe2 {[%clk 0:00:12.4]} 34. Kxe2 {[%clk 0:01:28.5]} 34... Kg6
{[%clk 0:00:12.3]} 35. e6 {[%clk 0:01:27.6]} 35... Re4+ {[%clk 0:00:09.6]} 36.
Kd3 {[%clk 0:01:27.3]} 36... Rxe6 {[%clk 0:00:10.5]} 37. Nd4 {[%clk 0:01:27.1]}
37... Rd6 {[%clk 0:00:10.6]} 38. Ke3 {[%clk 0:01:27.6]} 38... e5 {[%clk
0:00:09.5]} 39. Nb5 {[%clk 0:01:26.8]} 39... Rd7 {[%clk 0:00:10.1]} 40. Ke4
{[%clk 0:01:26.5]} 40... Kf6 {[%clk 0:00:09.7]} 41. Nc3 {[%clk 0:01:26.6]} 41...
Ke6 {[%clk 0:00:09.8]} 42. a4 {[%clk 0:01:25.1]} 42... f5+ {[%clk 0:00:10.7]}
43. Ke3 {[%clk 0:01:24.8]} 43... e4 {[%clk 0:00:10.7]} 44. a5 {[%clk 0:01:24]}
44... bxa5 {[%clk 0:00:09.9]} 45. Nb5 {[%clk 0:01:23.7]} 45... Ke5 {[%clk
0:00:09.8]} 46. Na3 {[%clk 0:01:19.1]} 46... f4+ {[%clk 0:00:10.7]} 47. Ke2
{[%clk 0:01:18.8]} 47... Rc7 {[%clk 0:00:11.2]} 48. Nb5 {[%clk 0:01:18.2]} 48...
Rc2+ {[%clk 0:00:11.1]} 0-1

[Event "Early-Titled-Tuesday-Blitz-September-26-2023"]
[Site "Chess.com"]
[Date "2023.09.26"]
[Round "5"]
[White "BlitzWizard04"]
[Black "Predator0608"]
[Result "1-0"]
[WhiteElo "2631"]
[BlackElo "2447"]
[TimeControl "180+1"]
[EndTime "8:57:29 PDT"]
[Termination "BlitzWizard04 won by resignation"]

1. e4 {[%clk 0:02:58.1]} 1... c5 {[%clk 0:02:59.8]} 2. Nf3 {[%clk 0:02:58.5]}
2... d6 {[%clk 0:03:00.2]} 3. d4 {[%clk 0:02:58.5]} 3... cxd4 {[%clk 0:03:01.1]}
4. Nxd4 {[%clk 0:02:58.4]} 4... Nf6 {[%clk 0:03:01.7]} 5. Nc3 {[%clk 0:02:59.1]}
5... a6 {[%clk 0:03:02.1]} 6. h3 {[%clk 0:02:57.7]} 6... e5 {[%clk 0:03:02.1]}
7. Nde2 {[%clk 0:02:57]} 7... h5 {[%clk 0:03:03]} 8. Bg5 {[%clk 0:02:48.5]} 8...
Be6 {[%clk 0:03:00.6]} 9. Bxf6 {[%clk 0:02:45.7]} 9... Qxf6 {[%clk 0:02:59.8]}
10. Nd5 {[%clk 0:02:45.6]} 10... Bxd5 {[%clk 0:02:57.7]} 11. Qxd5 {[%clk
0:02:46.5]} 11... Nc6 {[%clk 0:02:57.3]} 12. c3 {[%clk 0:02:43.7]} 12... g6
{[%clk 0:02:43.3]} 13. Ng1 {[%clk 0:02:37.1]} 13... Bh6 {[%clk 0:02:25]} 14. Bc4
{[%clk 0:02:36.9]} 14... Rd8 {[%clk 0:02:18]} 15. Bxa6 {[%clk 0:02:32.2]} 15...
O-O {[%clk 0:02:11.4]} 16. Bxb7 {[%clk 0:02:29.5]} 16... Ne7 {[%clk 0:02:10.7]}
17. Qb3 {[%clk 0:02:19.1]} 17... Rb8 {[%clk 0:02:10.3]} 18. a4 {[%clk
0:02:13.4]} 18... d5 {[%clk 0:01:53.7]} 19. a5 {[%clk 0:02:10]} 19... dxe4
{[%clk 0:01:45.3]} 20. Ne2 {[%clk 0:02:00.4]} 20... Bd2+ {[%clk 0:01:12.3]} 21.
Kxd2 {[%clk 0:01:43.4]} 21... Qxf2 {[%clk 0:01:11.5]} 22. Rae1 {[%clk
0:01:44.1]} 22... Rfd8+ {[%clk 0:00:53.5]} 23. Kc2 {[%clk 0:01:43.3]} 23... Qe3
{[%clk 0:00:43.2]} 24. Kb1 {[%clk 0:01:38.3]} 24... Nc6 {[%clk 0:00:31.6]} 25.
a6 {[%clk 0:01:36.2]} 25... Na5 {[%clk 0:00:30.9]} 26. Qb5 {[%clk 0:01:35.5]}
26... Nxb7 {[%clk 0:00:31]} 27. axb7 {[%clk 0:01:36.4]} 27... Qa7 {[%clk
0:00:24.7]} 28. Rd1 {[%clk 0:01:30.5]} 28... Rxd1+ {[%clk 0:00:17]} 29. Rxd1
{[%clk 0:01:29.6]} 29... Rxb7 {[%clk 0:00:17.9]} 30. Rd8+ {[%clk 0:01:27.7]}
30... Kg7 {[%clk 0:00:17.4]} 31. Qxe5+ {[%clk 0:01:24.5]} 31... f6 {[%clk
0:00:17.4]} 32. Qd4 {[%clk 0:01:22.1]} 32... Qa6 {[%clk 0:00:11.2]} 33. Rd7+
{[%clk 0:01:21.7]} 33... Rxd7 {[%clk 0:00:09.2]} 34. Qxd7+ {[%clk 0:01:22.6]}
34... Kg8 {[%clk 0:00:08.2]} 35. Qd2 {[%clk 0:01:23.5]} 35... f5 {[%clk
0:00:07.2]} 36. Nf4 {[%clk 0:01:21.6]} 36... Qf1+ {[%clk 0:00:06.9]} 37. Kc2
{[%clk 0:01:21.5]} 37... Kg7 {[%clk 0:00:07.3]} 38. Ne6+ {[%clk 0:01:20.1]}
38... Kf6 {[%clk 0:00:07.1]} 39. Nd4 {[%clk 0:01:17.2]} 39... Qa6 {[%clk
0:00:05.9]} 40. Nb3 {[%clk 0:01:12.6]} 40... Qa4 {[%clk 0:00:06.4]} 41. Qd4+
{[%clk 0:01:12.1]} 1-0

[Event "Early-Titled-Tuesday-Blitz-September-26-2023"]
[Site "Chess.com"]
[Date "2023.09.26"]
[Round "5"]
[White "CristianS27"]
[Black "Barbix1"]
[Result "1-0"]
[WhiteElo "2503"]
[BlackElo "2324"]
[TimeControl "180+1"]
[EndTime "8:57:36 PDT"]
[Termination "CristianS27 won on time"]

1. e4 {[%clk 0:03:00.9]} 1... c5 {[%clk 0:02:57.1]} 2. Nf3 {[%clk 0:02:54.5]}
2... g6 {[%clk 0:02:56.7]} 3. d4 {[%clk 0:02:54.5]} 3... cxd4 {[%clk 0:02:57.3]}
4. Nxd4 {[%clk 0:02:55.4]} 4... Bg7 {[%clk 0:02:55.7]} 5. Nc3 {[%clk 0:02:56.3]}
5... Nc6 {[%clk 0:02:53.1]} 6. Be3 {[%clk 0:02:56.9]} 6... Nf6 {[%clk
0:02:44.6]} 7. Bc4 {[%clk 0:02:56]} 7... O-O {[%clk 0:02:31]} 8. Bb3 {[%clk
0:02:56.2]} 8... d6 {[%clk 0:02:13.7]} 9. h3 {[%clk 0:02:55.5]} 9... Na5 {[%clk
0:02:10.2]} 10. O-O {[%clk 0:02:54.1]} 10... Bd7 {[%clk 0:02:02.8]} 11. f4
{[%clk 0:02:44.1]} 11... Ne8 {[%clk 0:01:26.7]} 12. f5 {[%clk 0:02:39.8]} 12...
Rc8 {[%clk 0:01:15]} 13. Qe2 {[%clk 0:02:38.3]} 13... a6 {[%clk 0:01:06.5]} 14.
fxg6 {[%clk 0:02:19.9]} 14... hxg6 {[%clk 0:01:04.1]} 15. Rad1 {[%clk
0:02:17.3]} 15... b5 {[%clk 0:01:01.5]} 16. Nd5 {[%clk 0:01:55.7]} 16... Nc4
{[%clk 0:00:34.3]} 17. Bg5 {[%clk 0:01:48.9]} 17... Nf6 {[%clk 0:00:24.5]} 18.
Bxf6 {[%clk 0:01:42.4]} 18... exf6 {[%clk 0:00:25.4]} 19. c3 {[%clk 0:01:38.7]}
19... Re8 {[%clk 0:00:23.6]} 20. Bxc4 {[%clk 0:01:30]} 20... Rxc4 {[%clk
0:00:21.5]} 21. Qf3 {[%clk 0:01:26.3]} 21... Re5 {[%clk 0:00:12.6]} 22. Rde1
{[%clk 0:01:25.2]} 22... Bc8 {[%clk 0:00:04.7]} 23. Nxf6+ {[%clk 0:01:23.8]}
23... Bxf6 {[%clk 0:00:04.8]} 24. Qxf6 {[%clk 0:01:24.7]} 24... Qxf6 {[%clk
0:00:05.1]} 25. Rxf6 {[%clk 0:01:25.6]} 25... Bb7 {[%clk 0:00:04.7]} 26. Ref1
{[%clk 0:01:21.1]} 26... b4 {[%clk 0:00:03.5]} 27. Rxf7 {[%clk 0:01:21.1]} 27...
Bc6 {[%clk 0:00:03.4]} 28. Rc7 {[%clk 0:01:19.6]} 28... Bb5 {[%clk 0:00:03.5]}
29. Nxb5 {[%clk 0:01:14.9]} 29... axb5 {[%clk 0:00:03.4]} 30. Rxc4 {[%clk
0:01:04.3]} 30... bxc4 {[%clk 0:00:04.3]} 31. cxb4 {[%clk 0:01:05.2]} 31... Rxe4
{[%clk 0:00:04.6]} 32. b5 {[%clk 0:01:04]} 32... Re2 {[%clk 0:00:04.7]} 33. Rb1
{[%clk 0:01:00.7]} 33... Re5 {[%clk 0:00:04.8]} 34. a4 {[%clk 0:01:00.4]} 34...
Kf7 {[%clk 0:00:05]} 35. Rc1 {[%clk 0:01:00.3]} 35... Rc5 {[%clk 0:00:05]} 36.
b6 {[%clk 0:00:55.7]} 36... Rc6 {[%clk 0:00:01.7]} 37. a5 {[%clk 0:00:54.9]} 1-0

[Event "Early-Titled-Tuesday-Blitz-September-26-2023"]
[Site "Chess.com"]
[Date "2023.09.26"]
[Round "5"]
[White "m_ezat"]
[Black "AnaKuchava"]
[Result "0-1"]
[WhiteElo "2522"]
[BlackElo "2260"]
[TimeControl "180+1"]
[EndTime "8:57:41 PDT"]
[Termination "AnaKuchava won on time"]

1. e4 {[%clk 0:03:00.9]} 1... c5 {[%clk 0:02:59.6]} 2. d4 {[%clk 0:02:59.8]}
2... cxd4 {[%clk 0:02:58]} 3. c3 {[%clk 0:02:58.5]} 3... Nf6 {[%clk 0:02:57.5]}
4. Bc4 {[%clk 0:02:56.1]} 4... Nc6 {[%clk 0:02:48.7]} 5. Qe2 {[%clk 0:02:40.4]}
5... e5 {[%clk 0:02:44.9]} 6. Nf3 {[%clk 0:02:38.7]} 6... Bc5 {[%clk 0:02:20.7]}
7. O-O {[%clk 0:02:37.7]} 7... O-O {[%clk 0:02:20]} 8. a4 {[%clk 0:02:34.5]}
8... dxc3 {[%clk 0:02:12.7]} 9. Nxc3 {[%clk 0:02:28.2]} 9... h6 {[%clk
0:02:05.5]} 10. Bd2 {[%clk 0:02:00.7]} 10... a6 {[%clk 0:01:45.4]} 11. Rfd1
{[%clk 0:01:58.9]} 11... Nd4 {[%clk 0:01:44.7]} 12. Nxd4 {[%clk 0:01:50.8]}
12... Bxd4 {[%clk 0:01:45.6]} 13. Rac1 {[%clk 0:01:40.4]} 13... Qb6 {[%clk
0:01:34.8]} 14. b3 {[%clk 0:01:37]} 14... d6 {[%clk 0:01:28.3]} 15. h3 {[%clk
0:01:17.4]} 15... Be6 {[%clk 0:01:22.2]} 16. Bxe6 {[%clk 0:01:11.6]} 16... fxe6
{[%clk 0:01:23.1]} 17. Kf1 {[%clk 0:00:35.7]} 17... Rac8 {[%clk 0:01:11.4]} 18.
f3 {[%clk 0:00:30.1]} 18... Nh5 {[%clk 0:01:00.5]} 19. Be1 {[%clk 0:00:25.6]}
19... Nf4 {[%clk 0:00:43.8]} 20. Qb2 {[%clk 0:00:17.5]} 20... Nxh3 {[%clk
0:00:26.1]} 21. gxh3 {[%clk 0:00:09.6]} 21... Rxf3+ {[%clk 0:00:25.4]} 22. Ke2
{[%clk 0:00:09.8]} 22... Bxc3 {[%clk 0:00:21.9]} 23. Rxc3 {[%clk 0:00:06.5]}
23... Rcxc3 {[%clk 0:00:19.6]} 0-1

[Event "Early-Titled-Tuesday-Blitz-September-26-2023"]
[Site "Chess.com"]
[Date "2023.09.26"]
[Round "5"]
[White "Khromkin"]
[Black "DanielTitichoca"]
[Result "0-1"]
[WhiteElo "2357"]
[BlackElo "2563"]
[TimeControl "180+1"]
[EndTime "8:57:42 PDT"]
[Termination "DanielTitichoca won by resignation"]

1. d4 {[%clk 0:03:00.9]} 1... d5 {[%clk 0:02:55.3]} 2. c4 {[%clk 0:03:01.5]}
2... e6 {[%clk 0:02:55.2]} 3. Nc3 {[%clk 0:03:01.7]} 3... Nf6 {[%clk 0:02:55.7]}
4. Bg5 {[%clk 0:03:02]} 4... c6 {[%clk 0:02:52.2]} 5. e3 {[%clk 0:03:02.4]} 5...
Nbd7 {[%clk 0:02:52.2]} 6. cxd5 {[%clk 0:03:02.6]} 6... exd5 {[%clk 0:02:51]} 7.
Bd3 {[%clk 0:02:59.3]} 7... Be7 {[%clk 0:02:46]} 8. Qc2 {[%clk 0:02:59.6]} 8...
Nf8 {[%clk 0:02:46]} 9. Nf3 {[%clk 0:02:54.2]} 9... Ne6 {[%clk 0:02:46.2]} 10.
Bh4 {[%clk 0:02:54.5]} 10... O-O {[%clk 0:02:41.2]} 11. h3 {[%clk 0:02:49.6]}
11... g6 {[%clk 0:02:38.3]} 12. Ne5 {[%clk 0:02:39.2]} 12... Ng7 {[%clk
0:02:34.2]} 13. g4 {[%clk 0:02:38.8]} 13... Nd7 {[%clk 0:02:32.2]} 14. Bg3
{[%clk 0:02:36.4]} 14... Nxe5 {[%clk 0:02:31.7]} 15. Bxe5 {[%clk 0:02:36.1]}
15... Bd6 {[%clk 0:02:32.4]} 16. Bxd6 {[%clk 0:02:33.2]} 16... Qxd6 {[%clk
0:02:27.9]} 17. O-O-O {[%clk 0:02:33.8]} 17... f5 {[%clk 0:01:55.9]} 18. gxf5
{[%clk 0:02:27.1]} 18... Bxf5 {[%clk 0:01:52.5]} 19. Bxf5 {[%clk 0:01:49.8]}
19... Rxf5 {[%clk 0:01:48.4]} 20. f4 {[%clk 0:01:34.2]} 20... Re8 {[%clk
0:01:47.5]} 21. Rde1 {[%clk 0:01:33]} 21... Rf7 {[%clk 0:01:39.9]} 22. h4 {[%clk
0:01:29.4]} 22... Rfe7 {[%clk 0:01:37.8]} 23. Qf2 {[%clk 0:01:23.1]} 23... Nf5
{[%clk 0:01:36.7]} 24. Nd1 {[%clk 0:01:13.6]} 24... Qb4 {[%clk 0:01:24.9]} 25.
h5 {[%clk 0:00:52.3]} 25... Qc4+ {[%clk 0:01:24.8]} 26. Nc3 {[%clk 0:00:34.1]}
26... Rxe3 {[%clk 0:01:23.3]} 27. hxg6 {[%clk 0:00:33.3]} 27... hxg6 {[%clk
0:01:13]} 28. Rxe3 {[%clk 0:00:31.5]} 28... Rxe3 {[%clk 0:01:13.1]} 29. Qh2
{[%clk 0:00:28.6]} 29... Ng7 {[%clk 0:00:56.2]} 30. f5 {[%clk 0:00:23.5]} 30...
gxf5 {[%clk 0:00:31.9]} 31. Qh7+ {[%clk 0:00:22.2]} 31... Kf7 {[%clk 0:00:31.6]}
32. Rg1 {[%clk 0:00:22]} 32... Rxc3+ {[%clk 0:00:31.1]} 33. bxc3 {[%clk
0:00:20.3]} 33... Qxc3+ {[%clk 0:00:30.8]} 34. Kb1 {[%clk 0:00:20.8]} 34... Qd3+
{[%clk 0:00:30]} 35. Kc1 {[%clk 0:00:17.4]} 35... Qe3+ {[%clk 0:00:29.4]} 36.
Kb2 {[%clk 0:00:18.1]} 36... Qxg1 {[%clk 0:00:29.7]} 0-1

[Event "Early-Titled-Tuesday-Blitz-September-26-2023"]
[Site "Chess.com"]
[Date "2023.09.26"]
[Round "5"]
[White "ljm509"]
[Black "kuba2006"]
[Result "0-1"]
[WhiteElo "2309"]
[BlackElo "2487"]
[TimeControl "180+1"]
[EndTime "8:57:42 PDT"]
[Termination "kuba2006 won by resignation"]

1. e4 {[%clk 0:02:58]} 1... Nf6 {[%clk 0:03:00.9]} 2. e5 {[%clk 0:02:57.1]} 2...
Nd5 {[%clk 0:03:00.9]} 3. d4 {[%clk 0:02:57.3]} 3... d6 {[%clk 0:03:00.3]} 4. f4
{[%clk 0:02:55.3]} 4... dxe5 {[%clk 0:02:59.1]} 5. fxe5 {[%clk 0:02:54]} 5...
Nc6 {[%clk 0:02:58.2]} 6. a3 {[%clk 0:02:51.7]} 6... Bf5 {[%clk 0:02:49.3]} 7.
c4 {[%clk 0:02:45.5]} 7... Nb6 {[%clk 0:02:47.7]} 8. Nf3 {[%clk 0:02:44.5]} 8...
e6 {[%clk 0:02:47.5]} 9. Nc3 {[%clk 0:02:42.4]} 9... Qd7 {[%clk 0:02:18.5]} 10.
d5 {[%clk 0:02:17]} 10... exd5 {[%clk 0:02:11]} 11. cxd5 {[%clk 0:02:16.8]}
11... Na5 {[%clk 0:02:02.9]} 12. Bb5 {[%clk 0:02:15.5]} 12... c6 {[%clk
0:01:57.3]} 13. dxc6 {[%clk 0:02:16.4]} 13... bxc6 {[%clk 0:01:56.5]} 14. Qxd7+
{[%clk 0:02:13.7]} 14... Kxd7 {[%clk 0:01:56.4]} 15. Be2 {[%clk 0:02:08.8]}
15... Nb3 {[%clk 0:01:55.7]} 16. e6+ {[%clk 0:01:29]} 16... fxe6 {[%clk
0:01:46.8]} 17. Ne5+ {[%clk 0:01:26.7]} 17... Kc8 {[%clk 0:01:30.8]} 18. Ba6+
{[%clk 0:01:23.3]} 18... Kc7 {[%clk 0:01:23.8]} 19. Bf4 {[%clk 0:01:21]} 19...
Bd6 {[%clk 0:01:23.5]} 20. Rd1 {[%clk 0:01:18.9]} 20... Nd5 {[%clk 0:01:20.3]}
21. Bg3 {[%clk 0:01:13.4]} 21... Nc5 {[%clk 0:01:08.5]} 22. Bc4 {[%clk 0:01:06]}
22... Rab8 {[%clk 0:01:01.7]} 23. Rd2 {[%clk 0:00:58.2]} 23... Nb3 {[%clk
0:00:44.4]} 24. Re2 {[%clk 0:00:50.5]} 24... Nd4 {[%clk 0:00:40.3]} 25. Rd2
{[%clk 0:00:45.1]} 25... Nc2+ {[%clk 0:00:40.2]} 26. Ke2 {[%clk 0:00:39.9]}
26... Rxb2 {[%clk 0:00:39.2]} 27. Bxd5 {[%clk 0:00:36.1]} 27... exd5 {[%clk
0:00:37.8]} 28. Rc1 {[%clk 0:00:32.8]} 28... Re8 {[%clk 0:00:29.1]} 29. Kd1
{[%clk 0:00:32.3]} 29... Bxe5 {[%clk 0:00:18]} 30. Bxe5+ {[%clk 0:00:31.7]}
30... Rxe5 {[%clk 0:00:18.9]} 31. Rdxc2 {[%clk 0:00:31.4]} 31... Bxc2+ {[%clk
0:00:18.4]} 32. Rxc2 {[%clk 0:00:31.5]} 32... Rxc2 {[%clk 0:00:19.3]} 33. Kxc2
{[%clk 0:00:31.1]} 33... Re3 {[%clk 0:00:19.8]} 34. Nd1 {[%clk 0:00:30.4]} 34...
Re2+ {[%clk 0:00:19.4]} 0-1

[Event "Early-Titled-Tuesday-Blitz-September-26-2023"]
[Site "Chess.com"]
[Date "2023.09.26"]
[Round "5"]
[White "vugarrasulov"]
[Black "lamomiajunior"]
[Result "1-0"]
[WhiteElo "2947"]
[BlackElo "2755"]
[TimeControl "180+1"]
[EndTime "8:57:51 PDT"]
[Termination "vugarrasulov won on time"]

1. e4 {[%clk 0:03:00.9]} 1... c6 {[%clk 0:03:00.1]} 2. Nc3 {[%clk 0:03:00.1]}
2... d5 {[%clk 0:03:00.5]} 3. Nf3 {[%clk 0:03:00.7]} 3... Bg4 {[%clk 0:03:01.2]}
4. h3 {[%clk 0:03:00.4]} 4... Bxf3 {[%clk 0:03:01.9]} 5. Qxf3 {[%clk 0:03:01.1]}
5... e6 {[%clk 0:03:02.8]} 6. d4 {[%clk 0:02:59.2]} 6... Nf6 {[%clk 0:03:00.4]}
7. Bd3 {[%clk 0:02:57.9]} 7... dxe4 {[%clk 0:02:59.8]} 8. Nxe4 {[%clk
0:02:58.8]} 8... Qxd4 {[%clk 0:03:00.2]} 9. c3 {[%clk 0:02:53.5]} 9... Qd8
{[%clk 0:02:44.6]} 10. Bg5 {[%clk 0:02:47.2]} 10... Be7 {[%clk 0:02:34.2]} 11.
O-O-O {[%clk 0:02:46.8]} 11... Nxe4 {[%clk 0:02:17.4]} 12. Bxe7 {[%clk
0:02:46.9]} 12... Qxe7 {[%clk 0:02:16.5]} 13. Bxe4 {[%clk 0:02:47.5]} 13... Nd7
{[%clk 0:02:11.6]} 14. Qg3 {[%clk 0:02:40.6]} 14... Nf6 {[%clk 0:01:54.4]} 15.
Bc2 {[%clk 0:02:39.3]} 15... O-O {[%clk 0:01:53.7]} 16. Qh4 {[%clk 0:02:38.4]}
16... Rad8 {[%clk 0:01:50.7]} 17. Bxh7+ {[%clk 0:02:36.8]} 17... Kh8 {[%clk
0:01:48.6]} 18. Bc2+ {[%clk 0:02:27.6]} 18... Kg8 {[%clk 0:01:49.1]} 19. g4
{[%clk 0:02:28.2]} 19... g6 {[%clk 0:01:44.2]} 20. Qg5 {[%clk 0:02:18.4]} 20...
Rd5 {[%clk 0:01:19.1]} 21. Rxd5 {[%clk 0:02:05.5]} 21... Nxd5 {[%clk 0:01:19.3]}
22. Qxe7 {[%clk 0:02:06.1]} 22... Nxe7 {[%clk 0:01:20.2]} 23. Rd1 {[%clk
0:02:06]} 23... Nd5 {[%clk 0:01:20.9]} 24. c4 {[%clk 0:02:04.3]} 24... Nf4
{[%clk 0:01:16.2]} 25. h4 {[%clk 0:01:46.8]} 25... b5 {[%clk 0:00:37.9]} 26. b3
{[%clk 0:01:36]} 26... bxc4 {[%clk 0:00:33.4]} 27. bxc4 {[%clk 0:01:36.9]} 27...
Ne2+ {[%clk 0:00:30.4]} 28. Kb2 {[%clk 0:01:37.2]} 28... Rb8+ {[%clk 0:00:28.4]}
29. Bb3 {[%clk 0:01:37.8]} 29... a5 {[%clk 0:00:29]} 30. Rd2 {[%clk 0:01:26.2]}
30... Nf4 {[%clk 0:00:24.5]} 31. Ka3 {[%clk 0:01:26.9]} 31... e5 {[%clk
0:00:18.5]} 32. Ka4 {[%clk 0:01:25.1]} 32... Ra8 {[%clk 0:00:13.1]} 33. Rd6
{[%clk 0:01:22.8]} 33... c5 {[%clk 0:00:13.5]} 34. Bc2 {[%clk 0:01:16.5]} 34...
Kg7 {[%clk 0:00:10.4]} 35. Be4 {[%clk 0:01:12.8]} 35... Ra7 {[%clk 0:00:10.6]}
36. Kb5 {[%clk 0:01:08.4]} 36... Ne6 {[%clk 0:00:07.6]} 37. Bd5 {[%clk
0:01:05.5]} 37... Nd4+ {[%clk 0:00:07]} 38. Kxc5 {[%clk 0:01:04]} 38... Rc7+
{[%clk 0:00:06.6]} 39. Kb6 {[%clk 0:01:04.2]} 39... Rc8 {[%clk 0:00:06.2]} 40.
c5 {[%clk 0:01:04.9]} 40... Kf8 {[%clk 0:00:05.8]} 41. Bb7 {[%clk 0:01:03.7]}
41... Re8 {[%clk 0:00:04.1]} 42. c6 {[%clk 0:01:03.4]} 42... Ke7 {[%clk
0:00:04]} 43. Rd5 {[%clk 0:00:57.6]} 43... Ke6 {[%clk 0:00:04.2]} 44. c7 {[%clk
0:00:57.3]} 1-0

[Event "Early-Titled-Tuesday-Blitz-September-26-2023"]
[Site "Chess.com"]
[Date "2023.09.26"]
[Round "5"]
[White "kuanysh1981"]
[Black "MokshanovAlexey"]
[Result "1/2-1/2"]
[WhiteElo "2518"]
[BlackElo "2656"]
[TimeControl "180+1"]
[EndTime "8:57:51 PDT"]
[Termination "Game drawn by repetition"]

1. e4 {[%clk 0:03:00.6]} 1... e6 {[%clk 0:02:59]} 2. d4 {[%clk 0:02:59.7]} 2...
d5 {[%clk 0:02:59.3]} 3. Nd2 {[%clk 0:03:00.4]} 3... Nf6 {[%clk 0:02:59.5]} 4.
e5 {[%clk 0:03:00.2]} 4... Nfd7 {[%clk 0:02:59.8]} 5. Bd3 {[%clk 0:02:57.7]}
5... c5 {[%clk 0:03:00]} 6. c3 {[%clk 0:02:58.3]} 6... Nc6 {[%clk 0:03:00.7]} 7.
Ne2 {[%clk 0:02:58.6]} 7... cxd4 {[%clk 0:03:01.1]} 8. cxd4 {[%clk 0:02:58.8]}
8... f6 {[%clk 0:03:01.7]} 9. exf6 {[%clk 0:02:58.6]} 9... Nxf6 {[%clk 0:03:02]}
10. O-O {[%clk 0:02:57.9]} 10... Bd6 {[%clk 0:03:02.7]} 11. Nf3 {[%clk 0:02:58]}
11... Qc7 {[%clk 0:03:02.9]} 12. a3 {[%clk 0:02:53.5]} 12... O-O {[%clk
0:03:02.7]} 13. Ng3 {[%clk 0:02:51.5]} 13... Bd7 {[%clk 0:02:56.1]} 14. b4
{[%clk 0:02:43.2]} 14... e5 {[%clk 0:02:47]} 15. b5 {[%clk 0:02:43.2]} 15...
Nxd4 {[%clk 0:02:44.5]} 16. Nxd4 {[%clk 0:02:40.9]} 16... exd4 {[%clk
0:02:45.4]} 17. Bb2 {[%clk 0:02:38.8]} 17... Qb6 {[%clk 0:02:42.8]} 18. Bxd4
{[%clk 0:02:26.7]} 18... Bc5 {[%clk 0:02:39]} 19. Ne2 {[%clk 0:02:09.9]} 19...
Bg4 {[%clk 0:02:23.6]} 20. Bxc5 {[%clk 0:02:07.3]} 20... Qxc5 {[%clk 0:02:23.4]}
21. a4 {[%clk 0:01:57.9]} 21... Bxe2 {[%clk 0:02:11.3]} 22. Bxe2 {[%clk
0:01:47.5]} 22... Ne4 {[%clk 0:02:04.6]} 23. Bf3 {[%clk 0:01:47.7]} 23... Rae8
{[%clk 0:02:05.2]} 24. Rc1 {[%clk 0:01:45]} 24... Nc3 {[%clk 0:01:46.8]} 25. Qd3
{[%clk 0:01:38.8]} 25... d4 {[%clk 0:01:43.5]} 26. Kh1 {[%clk 0:01:30.8]} 26...
b6 {[%clk 0:01:37.3]} 27. h3 {[%clk 0:01:25.9]} 27... Qb4 {[%clk 0:01:28.5]} 28.
Ra1 {[%clk 0:01:25.6]} 28... Re7 {[%clk 0:01:23.8]} 29. Bc6 {[%clk 0:01:19]}
29... g6 {[%clk 0:01:14.7]} 30. f3 {[%clk 0:01:18.4]} 30... Rf6 {[%clk
0:01:12.1]} 31. Rfe1 {[%clk 0:01:14.7]} 31... Rfe6 {[%clk 0:01:02.8]} 32. Rxe6
{[%clk 0:01:13.7]} 32... Rxe6 {[%clk 0:01:03.1]} 33. Rc1 {[%clk 0:01:09.5]}
33... Kg7 {[%clk 0:00:57.7]} 34. Qd2 {[%clk 0:01:04]} 34... Qxa4 {[%clk
0:00:43.5]} 35. Qf4 {[%clk 0:01:03.9]} 35... Qb4 {[%clk 0:00:43]} 36. Ra1 {[%clk
0:01:01.2]} 36... Na4 {[%clk 0:00:21]} 37. Bd5 {[%clk 0:00:54.7]} 37... Re1+
{[%clk 0:00:20.8]} 38. Kh2 {[%clk 0:00:42.2]} 38... Rxa1 {[%clk 0:00:19.1]} 39.
Qf7+ {[%clk 0:00:41.8]} 39... Kh6 {[%clk 0:00:19.6]} 40. Qf4+ {[%clk 0:00:40.7]}
40... Kg7 {[%clk 0:00:19.7]} 41. Qf7+ {[%clk 0:00:40.6]} 41... Kh6 {[%clk
0:00:20.3]} 42. Qf4+ {[%clk 0:00:36.1]} 42... Kg7 {[%clk 0:00:20.6]} 1/2-1/2